[Event "*** Titled Tuesday 3|2 Blitz"]
[Site "Chess.com"]
[Date "2016.10.04"]
[Round "4"]
[White "LyonBeast"]
[Black "jncool68"]
[Result "1-0"]
[WhiteElo "2729"]
[BlackElo "2448"]
[TimeControl "180+2"]
[EndTime "11:51:41 PDT"]
[Termination "LyonBeast won by resignation"]

1. d4 {[%clk 0:03:02]} 1... Nf6 {[%clk 0:03:00.2]} 2. c4 {[%clk 0:03:02.2]} 2...
e6 {[%clk 0:03:01.3]} 3. Nc3 {[%clk 0:03:02.3]} 3... Bb4 {[%clk 0:03:02]} 4. e3
{[%clk 0:03:02.4]} 4... O-O {[%clk 0:03:02.7]} 5. Ne2 {[%clk 0:03:02.5]} 5...
Re8 {[%clk 0:03:02.5]} 6. a3 {[%clk 0:03:01.6]} 6... Bf8 {[%clk 0:03:04.1]} 7.
e4 {[%clk 0:02:56.9]} 7... d5 {[%clk 0:03:02.4]} 8. e5 {[%clk 0:02:57.8]} 8...
Nfd7 {[%clk 0:03:01.1]} 9. c5 {[%clk 0:02:53.6]} 9... a5 {[%clk 0:02:58.8]} 10.
Rb1 {[%clk 0:02:50.1]} 10... b6 {[%clk 0:02:59.3]} 11. b4 {[%clk 0:02:51.3]}
11... axb4 {[%clk 0:02:59.3]} 12. axb4 {[%clk 0:02:53.2]} 12... bxc5 {[%clk
0:03:00.4]} 13. bxc5 {[%clk 0:02:55.1]} 13... Ba6 {[%clk 0:02:58.9]} 14. Nf4
{[%clk 0:02:45.7]} 14... Nc6 {[%clk 0:02:58.6]} 15. Bxa6 {[%clk 0:02:45.7]}
15... Rxa6 {[%clk 0:02:59]} 16. O-O {[%clk 0:02:44.4]} 16... Qa8 {[%clk
0:02:50.8]} 17. Be3 {[%clk 0:02:36.7]} 17... Rb8 {[%clk 0:02:50.3]} 18. Rxb8
{[%clk 0:02:32.4]} 18... Qxb8 {[%clk 0:02:50.6]} 19. Qg4 {[%clk 0:02:25.6]}
19... Qb4 {[%clk 0:02:38.9]} 20. Ncxd5 {[%clk 0:02:24.5]} 20... exd5 {[%clk
0:02:11.7]} 21. Nxd5 {[%clk 0:02:24.1]} 21... Qb2 {[%clk 0:02:04.5]} 22. Qxd7
{[%clk 0:02:08]} 22... Ra1 {[%clk 0:01:32.4]} 23. Qxc6 {[%clk 0:02:08.7]} 23...
Rxf1+ {[%clk 0:01:31.1]} 24. Kxf1 {[%clk 0:02:09.5]} 24... Qb1+ {[%clk
0:01:30.3]} 25. Ke2 {[%clk 0:02:10.9]} 25... Qc2+ {[%clk 0:01:25.9]} 26. Ke1
{[%clk 0:02:11.9]} 26... Qb1+ {[%clk 0:01:26.5]} 27. Kd2 {[%clk 0:02:12.8]}
27... Qb2+ {[%clk 0:01:27.6]} 28. Kd3 {[%clk 0:02:13.9]} 28... Qb1+ {[%clk
0:01:28.8]} 29. Kc4 {[%clk 0:01:56.9]} 29... Qa2+ {[%clk 0:01:27.9]} 30. Kb5
{[%clk 0:01:56.3]} 30... Qe2+ {[%clk 0:01:28.6]} 31. Ka5 {[%clk 0:01:52.2]}
31... Qa2+ {[%clk 0:01:29.6]} 32. Qa4 {[%clk 0:01:52.9]} 32... Qxd5 {[%clk
0:01:30.5]} 33. f3 {[%clk 0:01:45.8]} 33... h6 {[%clk 0:01:17.9]} 34. Kb4 {[%clk
0:01:41.1]} 34... Be7 {[%clk 0:01:06.3]} 35. Kc3 {[%clk 0:01:40.1]} 35... Kh7
{[%clk 0:01:04.2]} 36. Qc2+ {[%clk 0:01:39.7]} 36... Kg8 {[%clk 0:01:03.2]} 37.
Qb3 {[%clk 0:01:40.1]} 37... Qa8 {[%clk 0:01:03.1]} 38. Kb2 {[%clk 0:01:39.3]}
38... Qa5 {[%clk 0:01:03.2]} 39. e6 {[%clk 0:01:19.6]} 39... fxe6 {[%clk
0:01:00.2]} 40. Qxe6+ {[%clk 0:01:19.9]} 40... Kf8 {[%clk 0:01:01.8]} 41. Qc8+
{[%clk 0:01:11.2]} 41... Kf7 {[%clk 0:01:02.4]} 42. Qf5+ {[%clk 0:01:12.2]}
42... Kg8 {[%clk 0:01:02.8]} 43. Qd3 {[%clk 0:01:10.5]} 43... Bf6 {[%clk
0:01:02.7]} 44. Kb3 {[%clk 0:01:00.3]} 44... Qa8 {[%clk 0:00:58.7]} 45. Qc4+
{[%clk 0:00:53.5]} 45... Kh8 {[%clk 0:00:57.8]} 46. Bd2 {[%clk 0:00:53.9]} 46...
Qa1 {[%clk 0:00:57.2]} 47. Bc3 {[%clk 0:00:51.6]} 47... Qb1+ {[%clk 0:00:56.6]}
48. Ka4 {[%clk 0:00:46.1]} 48... c6 {[%clk 0:00:57.2]} 49. Qb3 {[%clk
0:00:33.5]} 49... Qd3 {[%clk 0:00:54.8]} 50. Kb4 {[%clk 0:00:21.3]} 50... Bxd4
{[%clk 0:00:45.9]} 51. Bxd4 {[%clk 0:00:23.2]} 51... Qxd4+ {[%clk 0:00:47.2]}
52. Qc4 {[%clk 0:00:24.9]} 52... Qb2+ {[%clk 0:00:47]} 53. Ka5 {[%clk
0:00:25.9]} 53... Qxg2 {[%clk 0:00:47.9]} 54. Qe4 {[%clk 0:00:23.7]} 54... Qxh2
{[%clk 0:00:36.7]} 55. Kb6 {[%clk 0:00:22.3]} 55... Qb8+ {[%clk 0:00:36.2]} 56.
Kxc6 {[%clk 0:00:23.5]} 56... h5 {[%clk 0:00:35.3]} 57. Kd7 {[%clk 0:00:20.5]}
57... Qa7+ {[%clk 0:00:31.7]} 58. Kd6 {[%clk 0:00:21.4]} 58... Qb8+ {[%clk
0:00:32.6]} 59. Kd5 {[%clk 0:00:22.9]} 59... Qb7+ {[%clk 0:00:32.9]} 60. c6
{[%clk 0:00:23.9]} 60... Qb5+ {[%clk 0:00:33.4]} 61. Kd6 {[%clk 0:00:24.9]}
61... Qb6 {[%clk 0:00:16.7]} 62. Qe8+ {[%clk 0:00:24.4]} 62... Kh7 {[%clk
0:00:18.6]} 63. Qxh5+ {[%clk 0:00:26.3]} 63... Kg8 {[%clk 0:00:20.4]} 64. Qd5+
{[%clk 0:00:25.5]} 64... Kh7 {[%clk 0:00:20.9]} 65. Kd7 {[%clk 0:00:26]} 65...
Qa7+ {[%clk 0:00:15.2]} 66. c7 {[%clk 0:00:26.5]} 66... Qa4+ {[%clk 0:00:16.8]}
67. Kd8 {[%clk 0:00:20.4]} 67... Qh4+ {[%clk 0:00:17.8]} 68. Kc8 {[%clk
0:00:20.6]} 68... Qf6 {[%clk 0:00:17.4]} 69. Kd7 {[%clk 0:00:18]} 1-0

[Event "*** Titled Tuesday 3|2 Blitz"]
[Site "Chess.com"]
[Date "2016.10.04"]
[Round "4"]
[White "Peroncio"]
[Black "Iball95"]
[Result "1-0"]
[WhiteElo "2420"]
[BlackElo "2513"]
[TimeControl "180+2"]
[EndTime "11:51:55 PDT"]
[Termination "Peroncio won by resignation"]

1. Nf3 {[%clk 0:03:01.9]} 1... c5 {[%clk 0:03:00.4]} 2. g3 {[%clk 0:03:03]} 2...
Nc6 {[%clk 0:03:01.4]} 3. Bg2 {[%clk 0:03:04.6]} 3... g6 {[%clk 0:03:03]} 4. O-O
{[%clk 0:03:06.2]} 4... Bg7 {[%clk 0:03:04.7]} 5. d3 {[%clk 0:03:06.9]} 5... Nf6
{[%clk 0:03:04.3]} 6. e4 {[%clk 0:03:06]} 6... O-O {[%clk 0:03:05.5]} 7. Nc3
{[%clk 0:03:07.6]} 7... d5 {[%clk 0:03:06.1]} 8. h3 {[%clk 0:02:49]} 8... e6
{[%clk 0:02:49.6]} 9. Re1 {[%clk 0:02:46.3]} 9... b6 {[%clk 0:02:50.5]} 10. Bg5
{[%clk 0:02:40]} 10... d4 {[%clk 0:02:24.5]} 11. e5 {[%clk 0:02:12.5]} 11...
dxc3 {[%clk 0:02:23.6]} 12. bxc3 {[%clk 0:02:08.8]} 12... Bb7 {[%clk 0:02:06]}
13. exf6 {[%clk 0:02:01.7]} 13... Bxf6 {[%clk 0:02:07.9]} 14. Bxf6 {[%clk
0:01:58.1]} 14... Qxf6 {[%clk 0:02:09.8]} 15. Qd2 {[%clk 0:01:59.1]} 15... Rad8
{[%clk 0:02:08]} 16. Ng5 {[%clk 0:01:58.6]} 16... Qe7 {[%clk 0:01:56.8]} 17. h4
{[%clk 0:01:58.2]} 17... h5 {[%clk 0:01:38.5]} 18. Qf4 {[%clk 0:01:57.5]} 18...
e5 {[%clk 0:01:16.7]} 19. Bxc6 {[%clk 0:01:36.5]} 19... Bxc6 {[%clk 0:01:15]}
20. Rxe5 {[%clk 0:01:32]} 20... Qd6 {[%clk 0:01:13.9]} 21. Ne4 {[%clk
0:01:19.9]} 21... Bxe4 {[%clk 0:01:14.7]} 22. Qxe4 {[%clk 0:01:21.8]} 22... Rd7
{[%clk 0:01:14.1]} 23. a4 {[%clk 0:01:21.6]} 23... Kg7 {[%clk 0:01:12]} 24. a5
{[%clk 0:01:21.9]} 24... Rfd8 {[%clk 0:01:13.1]} 25. axb6 {[%clk 0:01:21]} 25...
axb6 {[%clk 0:01:15]} 26. Rb1 {[%clk 0:01:21.6]} 26... Qf6 {[%clk 0:01:15.2]}
27. c4 {[%clk 0:01:17]} 27... Rd4 {[%clk 0:01:14.9]} 28. Qe3 {[%clk 0:01:14.7]}
28... Rg4 {[%clk 0:01:10.3]} 29. Re4 {[%clk 0:00:59.1]} 29... Qxh4 {[%clk
0:01:03.9]} 30. Rxg4 {[%clk 0:00:59.1]} 30... Qxg4 {[%clk 0:01:05.8]} 31. Rxb6
{[%clk 0:00:48.8]} 31... Qd1+ {[%clk 0:01:03.1]} 32. Kg2 {[%clk 0:00:47.6]}
32... Qxc2 {[%clk 0:01:04.7]} 33. Qe5+ {[%clk 0:00:47.9]} 33... Kg8 {[%clk
0:01:04]} 34. Rd6 {[%clk 0:00:43.1]} 34... Rc8 {[%clk 0:00:44.9]} 35. Rd7 {[%clk
0:00:37.6]} 35... Qb1 {[%clk 0:00:24.5]} 36. Qd5 {[%clk 0:00:37.4]} 36... Rf8
{[%clk 0:00:22.6]} 37. Qxc5 {[%clk 0:00:37.9]} 37... Qd1 {[%clk 0:00:20.2]} 38.
Qd4 {[%clk 0:00:35.4]} 38... Qa4 {[%clk 0:00:17.1]} 39. c5 {[%clk 0:00:35.2]}
39... Qa8+ {[%clk 0:00:09.6]} 40. Qd5 {[%clk 0:00:35.1]} 40... Qa4 {[%clk
0:00:07.9]} 41. c6 {[%clk 0:00:30.7]} 41... h4 {[%clk 0:00:09.1]} 42. c7 {[%clk
0:00:30.8]} 42... hxg3 {[%clk 0:00:10.4]} 43. Rd8 {[%clk 0:00:26.8]} 43... Qc2
{[%clk 0:00:06.7]} 44. Rxf8+ {[%clk 0:00:13.2]} 44... Kxf8 {[%clk 0:00:08.6]}
45. Qd6+ {[%clk 0:00:14.7]} 45... Kg7 {[%clk 0:00:09.2]} 46. Qxg3 {[%clk
0:00:16.6]} 46... Qc6+ {[%clk 0:00:10.1]} 47. Kg1 {[%clk 0:00:14.3]} 47... Qc1+
{[%clk 0:00:10.6]} 48. Kg2 {[%clk 0:00:14.3]} 48... Qc6+ {[%clk 0:00:11.7]} 49.
Kh2 {[%clk 0:00:16]} 49... f5 {[%clk 0:00:10.6]} 50. Qe5+ {[%clk 0:00:16]} 50...
Kh6 {[%clk 0:00:10.9]} 51. Qf4+ {[%clk 0:00:17]} 51... Kg7 {[%clk 0:00:12.1]}
52. Qe5+ {[%clk 0:00:18.5]} 52... Kf7 {[%clk 0:00:13.7]} 53. d4 {[%clk 0:00:19]}
53... Qf3 {[%clk 0:00:12.3]} 54. Qg3 {[%clk 0:00:19.9]} 54... Qc6 {[%clk
0:00:12.4]} 55. d5 {[%clk 0:00:19.9]} 55... Qc5 {[%clk 0:00:13.9]} 56. d6 {[%clk
0:00:16.8]} 56... Ke6 {[%clk 0:00:12.8]} 57. Qxg6+ {[%clk 0:00:17.6]} 57... Kd7
{[%clk 0:00:13.9]} 58. Qg3 {[%clk 0:00:14.4]} 58... Qc4 {[%clk 0:00:11.4]} 59.
Kg2 {[%clk 0:00:11]} 59... Qe4+ {[%clk 0:00:11.9]} 60. Qf3 {[%clk 0:00:11.5]}
60... Qc2 {[%clk 0:00:10.3]} 61. Qf4 {[%clk 0:00:10.9]} 61... Qc6+ {[%clk
0:00:10.5]} 62. Kh2 {[%clk 0:00:11.9]} 62... Qc2 {[%clk 0:00:10.5]} 63. Kg3
{[%clk 0:00:12.2]} 63... Qc3+ {[%clk 0:00:10.2]} 64. f3 {[%clk 0:00:13.3]} 64...
Qg7+ {[%clk 0:00:10.9]} 65. Kh2 {[%clk 0:00:12.2]} 65... Qh8+ {[%clk 0:00:11.5]}
66. Kg3 {[%clk 0:00:13.6]} 66... Qg7+ {[%clk 0:00:12.8]} 67. Kh3 {[%clk
0:00:15.1]} 67... Qh8+ {[%clk 0:00:13.8]} 68. Qh4 {[%clk 0:00:16.2]} 68... Qe8
{[%clk 0:00:09.3]} 69. Qe7+ {[%clk 0:00:16.7]} 69... Qxe7 {[%clk 0:00:10.8]} 70.
dxe7 {[%clk 0:00:18.6]} 1-0

[Event "*** Titled Tuesday 3|2 Blitz"]
[Site "Chess.com"]
[Date "2016.10.04"]
[Round "4"]
[White "oskariot"]
[Black "ilya261991"]
[Result "1/2-1/2"]
[WhiteElo "2374"]
[BlackElo "2480"]
[TimeControl "180+2"]
[EndTime "11:52:08 PDT"]
[Termination "Game drawn - insufficient material"]

1. e4 {[%clk 0:03:00.4]} 1... c5 {[%clk 0:03:00.5]} 2. Nf3 {[%clk 0:02:59.5]}
2... d6 {[%clk 0:03:01.7]} 3. d4 {[%clk 0:03:00.7]} 3... Nf6 {[%clk 0:03:03.1]}
4. Nc3 {[%clk 0:03:01.4]} 4... cxd4 {[%clk 0:03:04.6]} 5. Nxd4 {[%clk
0:03:02.7]} 5... a6 {[%clk 0:03:05.8]} 6. f4 {[%clk 0:03:04]} 6... Qc7 {[%clk
0:03:02.4]} 7. a4 {[%clk 0:03:04.2]} 7... e5 {[%clk 0:02:59.3]} 8. Nf3 {[%clk
0:03:05.5]} 8... Nbd7 {[%clk 0:02:54.4]} 9. Bd3 {[%clk 0:03:06.4]} 9... Be7
{[%clk 0:02:37.8]} 10. O-O {[%clk 0:03:07.5]} 10... O-O {[%clk 0:02:38.4]} 11.
Qe1 {[%clk 0:03:08.9]} 11... b6 {[%clk 0:02:17.1]} 12. fxe5 {[%clk 0:03:05.6]}
12... Nxe5 {[%clk 0:02:00.1]} 13. Nxe5 {[%clk 0:03:02.6]} 13... dxe5 {[%clk
0:02:02]} 14. Bg5 {[%clk 0:03:03.7]} 14... Be6 {[%clk 0:01:54.4]} 15. Bxf6
{[%clk 0:02:50.6]} 15... Bxf6 {[%clk 0:01:54.8]} 16. Rxf6 {[%clk 0:02:49.1]}
16... gxf6 {[%clk 0:01:55.2]} 17. Nd5 {[%clk 0:02:49]} 17... Bxd5 {[%clk
0:01:15.9]} 18. exd5 {[%clk 0:02:49.8]} 18... Rfd8 {[%clk 0:01:11.5]} 19. Qh4
{[%clk 0:01:59.3]} 19... Qc5+ {[%clk 0:01:11.8]} 20. Kh1 {[%clk 0:01:59.7]}
20... Qxd5 {[%clk 0:01:13.2]} 21. Qxh7+ {[%clk 0:02:00.8]} 21... Kf8 {[%clk
0:01:13.8]} 22. Rf1 {[%clk 0:01:58.8]} 22... Ke7 {[%clk 0:01:10.6]} 23. Be4
{[%clk 0:01:57.1]} 23... Qc4 {[%clk 0:01:02]} 24. Qf5 {[%clk 0:01:52.5]} 24...
Qe6 {[%clk 0:00:51.6]} 25. Qxe6+ {[%clk 0:01:27]} 25... fxe6 {[%clk 0:00:53.5]}
26. Bxa8 {[%clk 0:01:27.9]} 26... Rxa8 {[%clk 0:00:54.6]} 27. Rd1 {[%clk
0:01:29.5]} 27... Rc8 {[%clk 0:00:52]} 28. Rd2 {[%clk 0:01:29.6]} 28... Rc4
{[%clk 0:00:52.2]} 29. b3 {[%clk 0:01:29.9]} 29... Rc3 {[%clk 0:00:50.7]} 30.
Kg1 {[%clk 0:01:29.4]} 30... e4 {[%clk 0:00:49.9]} 31. g3 {[%clk 0:01:29.8]}
31... f5 {[%clk 0:00:47.8]} 32. Kf1 {[%clk 0:01:20.5]} 32... e5 {[%clk 0:00:48]}
33. Re2 {[%clk 0:01:09.9]} 33... Kf6 {[%clk 0:00:21.3]} 34. g4 {[%clk
0:01:05.6]} 34... fxg4 {[%clk 0:00:21.5]} 35. Rxe4 {[%clk 0:01:05.8]} 35... Rxc2
{[%clk 0:00:22.5]} 36. Rxg4 {[%clk 0:01:04.9]} 36... Rxh2 {[%clk 0:00:20.2]} 37.
Rb4 {[%clk 0:01:05.5]} 37... b5 {[%clk 0:00:14.4]} 38. axb5 {[%clk 0:01:05]}
38... axb5 {[%clk 0:00:16]} 39. Rxb5 {[%clk 0:01:02.1]} 39... Kf5 {[%clk
0:00:17.3]} 40. Rb8 {[%clk 0:00:55.7]} 40... Rb2 {[%clk 0:00:18.1]} 41. Rh8
{[%clk 0:00:54.8]} 41... Rxb3 {[%clk 0:00:16.8]} 42. Ke2 {[%clk 0:00:55]} 42...
Ke4 {[%clk 0:00:15.9]} 43. Rh4+ {[%clk 0:00:56]} 43... Kd5 {[%clk 0:00:17.2]}
44. Rh8 {[%clk 0:00:57.4]} 44... e4 {[%clk 0:00:18.6]} 45. Rh7 {[%clk 0:00:58]}
45... Rb2+ {[%clk 0:00:18.8]} 46. Ke1 {[%clk 0:00:58.4]} 46... Kd4 {[%clk
0:00:19.5]} 47. Rh3 {[%clk 0:00:59.9]} 47... Ra2 {[%clk 0:00:18.9]} 48. Rg3
{[%clk 0:01:00.9]} 48... Rb2 {[%clk 0:00:19.4]} 49. Ra3 {[%clk 0:01:01.9]} 49...
Rg2 {[%clk 0:00:20.5]} 50. Rb3 {[%clk 0:01:02.9]} 50... Rh2 {[%clk 0:00:21]} 51.
Ra3 {[%clk 0:01:04]} 51... Ke5 {[%clk 0:00:22.3]} 52. Rb3 {[%clk 0:01:04.9]}
52... Kf4 {[%clk 0:00:23.7]} 53. Ra3 {[%clk 0:01:06]} 53... Rh8 {[%clk
0:00:24.9]} 54. Rb3 {[%clk 0:01:06.8]} 54... Rf8 {[%clk 0:00:26.3]} 55. Ra3
{[%clk 0:01:07.8]} 55... Ke5 {[%clk 0:00:27.9]} 56. Rb3 {[%clk 0:01:08]} 56...
Kd4 {[%clk 0:00:29.4]} 57. Ra3 {[%clk 0:01:08.7]} 57... Rb8 {[%clk 0:00:26.2]}
58. Rh3 {[%clk 0:01:08.8]} 58... Rb1+ {[%clk 0:00:26.7]} 59. Ke2 {[%clk
0:01:09.4]} 59... Rb2+ {[%clk 0:00:28.1]} 60. Ke1 {[%clk 0:01:10.5]} 60... Ra2
{[%clk 0:00:28.5]} 61. Rg3 {[%clk 0:01:11.1]} 61... Ke5 {[%clk 0:00:29.4]} 62.
Rb3 {[%clk 0:01:12]} 62... Kf4 {[%clk 0:00:30]} 63. Rc3 {[%clk 0:01:12.6]} 63...
Rg2 {[%clk 0:00:28.6]} 64. Rb3 {[%clk 0:01:13]} 64... Rg5 {[%clk 0:00:25.8]} 65.
Ra3 {[%clk 0:01:13.4]} 65... Rf5 {[%clk 0:00:26.8]} 66. Rb3 {[%clk 0:01:14]}
66... Rd5 {[%clk 0:00:27.3]} 67. Ra3 {[%clk 0:01:14.9]} 67... Rb5 {[%clk
0:00:28.2]} 68. Rc3 {[%clk 0:01:15.6]} 68... Ke5 {[%clk 0:00:25.2]} 69. Rh3
{[%clk 0:01:16.2]} 69... Kd4 {[%clk 0:00:25.8]} 70. Rg3 {[%clk 0:01:17.3]} 70...
Ra5 {[%clk 0:00:23.9]} 71. Rh3 {[%clk 0:01:18.1]} 71... Ra1+ {[%clk 0:00:24]}
72. Ke2 {[%clk 0:01:18.8]} 72... Ra2+ {[%clk 0:00:25.6]} 73. Ke1 {[%clk
0:01:19.5]} 73... e3 {[%clk 0:00:27.3]} 74. Rh8 {[%clk 0:01:19.9]} 74... Ra1+
{[%clk 0:00:28.1]} 75. Ke2 {[%clk 0:01:20.5]} 75... Ra2+ {[%clk 0:00:29.6]} 76.
Ke1 {[%clk 0:01:21.5]} 76... Rg2 {[%clk 0:00:25.4]} 77. Rd8+ {[%clk 0:01:21.8]}
77... Ke4 {[%clk 0:00:26.4]} 78. Re8+ {[%clk 0:01:23]} 78... Kd3 {[%clk
0:00:27.5]} 79. Rd8+ {[%clk 0:01:24]} 79... Ke4 {[%clk 0:00:28.7]} 80. Re8+
{[%clk 0:01:25.3]} 80... Kf4 {[%clk 0:00:30.3]} 81. Rf8+ {[%clk 0:01:26]} 81...
Ke4 {[%clk 0:00:29.8]} 82. Re8+ {[%clk 0:01:24.2]} 82... Kd3 {[%clk 0:00:31.1]}
83. Rd8+ {[%clk 0:01:24.8]} 83... Kc3 {[%clk 0:00:32.4]} 84. Rc8+ {[%clk
0:01:25.5]} 84... Kb2 {[%clk 0:00:33.5]} 85. Rb8+ {[%clk 0:01:23.7]} 85... Kc2
{[%clk 0:00:33.9]} 86. Rc8+ {[%clk 0:01:24.1]} 86... Kb1 {[%clk 0:00:34.8]} 87.
Re8 {[%clk 0:01:20.9]} 87... e2 {[%clk 0:00:34.5]} 88. Rxe2 {[%clk 0:01:21.2]}
88... Rxe2+ {[%clk 0:00:36.1]} 89. Kxe2 {[%clk 0:01:22.7]} 1/2-1/2

[Event "*** Titled Tuesday 3|2 Blitz"]
[Site "Chess.com"]
[Date "2016.10.04"]
[Round "4"]
[White "pKiLz5Rn9b"]
[Black "Gordima"]
[Result "1-0"]
[WhiteElo "2493"]
[BlackElo "2547"]
[TimeControl "180+2"]
[EndTime "11:52:34 PDT"]
[Termination "pKiLz5Rn9b won on time"]

1. e4 {[%clk 0:03:01.9]} 1... c5 {[%clk 0:03:00.8]} 2. c3 {[%clk 0:03:03.2]}
2... Nf6 {[%clk 0:02:57.8]} 3. e5 {[%clk 0:03:04.5]} 3... Nd5 {[%clk 0:02:58.8]}
4. Nf3 {[%clk 0:03:06.2]} 4... d6 {[%clk 0:02:59.7]} 5. d4 {[%clk 0:03:06.8]}
5... cxd4 {[%clk 0:03:01.1]} 6. Bc4 {[%clk 0:03:07.7]} 6... Nb6 {[%clk
0:02:56.8]} 7. Bb3 {[%clk 0:03:09]} 7... e6 {[%clk 0:02:35]} 8. cxd4 {[%clk
0:03:08.9]} 8... Nc6 {[%clk 0:02:15]} 9. exd6 {[%clk 0:03:07.9]} 9... Bxd6
{[%clk 0:02:15.4]} 10. Nc3 {[%clk 0:03:08.7]} 10... Ne7 {[%clk 0:02:13.2]} 11.
O-O {[%clk 0:03:08.8]} 11... O-O {[%clk 0:02:07.6]} 12. Re1 {[%clk 0:03:03.3]}
12... Bd7 {[%clk 0:02:05.5]} 13. Ne5 {[%clk 0:03:02.2]} 13... Nbd5 {[%clk
0:01:52.1]} 14. Qf3 {[%clk 0:02:45.9]} 14... Bc6 {[%clk 0:01:48.1]} 15. Nxc6
{[%clk 0:02:40.6]} 15... bxc6 {[%clk 0:01:49.2]} 16. Bg5 {[%clk 0:02:31.3]}
16... Qc7 {[%clk 0:01:29.1]} 17. g3 {[%clk 0:02:31.9]} 17... Rab8 {[%clk
0:01:22.2]} 18. Rac1 {[%clk 0:02:31.6]} 18... Qd7 {[%clk 0:01:18.9]} 19. Ne4
{[%clk 0:02:26.6]} 19... Bb4 {[%clk 0:01:13.5]} 20. Red1 {[%clk 0:02:24.5]}
20... Nf5 {[%clk 0:01:08.4]} 21. Nc5 {[%clk 0:02:12.7]} 21... Qd6 {[%clk
0:00:53.8]} 22. Ne4 {[%clk 0:02:11]} 22... Qd7 {[%clk 0:00:51.2]} 23. Ba4 {[%clk
0:02:08.7]} 23... Rfc8 {[%clk 0:00:46.6]} 24. b3 {[%clk 0:01:56.7]} 24... Ba3
{[%clk 0:00:47.2]} 25. Rc2 {[%clk 0:01:56.8]} 25... Nb6 {[%clk 0:00:33.4]} 26.
Bxc6 {[%clk 0:00:33.8]} 26... Nxd4 {[%clk 0:00:26.7]} 27. Nf6+ {[%clk
0:00:25.3]} 27... gxf6 {[%clk 0:00:26.8]} 28. Rxd4 {[%clk 0:00:26.5]} 28... Qxd4
{[%clk 0:00:21.6]} 29. Bxf6 {[%clk 0:00:27.9]} 29... Qb4 {[%clk 0:00:20.3]} 30.
Rc4 {[%clk 0:00:21.8]} 30... Qe1+ {[%clk 0:00:21.1]} 31. Kg2 {[%clk 0:00:22.9]}
31... Rxc6 {[%clk 0:00:15.1]} 32. Qg4+ {[%clk 0:00:16.8]} 32... Kf8 {[%clk
0:00:16.1]} 33. Rxc6 {[%clk 0:00:15.6]} 33... Qd2 {[%clk 0:00:12.6]} 34. Rc7
{[%clk 0:00:11.2]} 34... Qd5+ {[%clk 0:00:12.5]} 35. f3 {[%clk 0:00:12.7]} 35...
Nd7 {[%clk 0:00:10.8]} 36. Bc3 {[%clk 0:00:09.3]} 36... Ke8 {[%clk 0:00:10.1]}
37. Rxa7 {[%clk 0:00:10.1]} 37... Bf8 {[%clk 0:00:10.3]} 38. Qa4 {[%clk
0:00:10]} 38... Rc8 {[%clk 0:00:11.2]} 39. Ra5 {[%clk 0:00:04.4]} 39... Qd3
{[%clk 0:00:08.8]} 40. Bb4 {[%clk 0:00:03]} 40... Bxb4 {[%clk 0:00:06.8]} 41.
Qxb4 {[%clk 0:00:03.6]} 41... Qe2+ {[%clk 0:00:08.1]} 42. Kh3 {[%clk 0:00:04.8]}
42... Qxf3 {[%clk 0:00:09.3]} 43. Rg5 {[%clk 0:00:03.9]} 43... Qf1+ {[%clk
0:00:08.9]} 44. Kh4 {[%clk 0:00:04.4]} 44... Nf8 {[%clk 0:00:05.4]} 45. Rg8
{[%clk 0:00:04.5]} 45... Qf6+ {[%clk 0:00:06.3]} 46. Kh3 {[%clk 0:00:06.1]}
46... Qe7 {[%clk 0:00:07.4]} 47. Qb5+ {[%clk 0:00:06.9]} 47... Kd8 {[%clk
0:00:08]} 48. Qb6+ {[%clk 0:00:07.8]} 48... Kd7 {[%clk 0:00:08.2]} 49. Rg4
{[%clk 0:00:06.5]} 49... e5 {[%clk 0:00:08.4]} 50. Qb7+ {[%clk 0:00:06.1]} 50...
Rc7 {[%clk 0:00:09.6]} 51. Qd5+ {[%clk 0:00:07.3]} 51... Ke8 {[%clk 0:00:09.2]}
52. Qa8+ {[%clk 0:00:07.7]} 52... Qd8 {[%clk 0:00:10]} 53. Qa4+ {[%clk
0:00:08.9]} 53... Qd7 {[%clk 0:00:11.3]} 54. Qe4 {[%clk 0:00:07.9]} 54... h5
{[%clk 0:00:12.5]} 55. Qxe5+ {[%clk 0:00:09.3]} 55... Qe6 {[%clk 0:00:08.9]} 56.
Qxh5 {[%clk 0:00:10.3]} 56... Rd7 {[%clk 0:00:06.7]} 57. Qb5 {[%clk 0:00:06.5]}
57... Ng6 {[%clk 0:00:07.7]} 58. Qb8+ {[%clk 0:00:06.8]} 58... Rd8 {[%clk
0:00:08.8]} 59. Qb5+ {[%clk 0:00:08.1]} 59... Kf8 {[%clk 0:00:09.1]} 60. Qb4+
{[%clk 0:00:09.4]} 60... Kg8 {[%clk 0:00:07.7]} 61. Qe4 {[%clk 0:00:08.7]} 61...
Qxe4 {[%clk 0:00:06.4]} 62. Rxe4 {[%clk 0:00:10.6]} 62... Rd2 {[%clk 0:00:07.8]}
63. a4 {[%clk 0:00:11.6]} 63... Rb2 {[%clk 0:00:08.6]} 64. Rb4 {[%clk
0:00:12.9]} 64... Ra2 {[%clk 0:00:09.9]} 65. Rb5 {[%clk 0:00:12.1]} 65... f6
{[%clk 0:00:11.4]} 66. a5 {[%clk 0:00:13.1]} 66... Ne5 {[%clk 0:00:12.8]} 67. b4
{[%clk 0:00:13.8]} 67... Nf3 {[%clk 0:00:13.7]} 68. Kg4 {[%clk 0:00:14.7]} 68...
Nxh2+ {[%clk 0:00:14.1]} 69. Kf5 {[%clk 0:00:16.2]} 69... Rf2+ {[%clk
0:00:10.1]} 70. Ke6 {[%clk 0:00:17.7]} 70... Ng4 {[%clk 0:00:10.2]} 71. a6
{[%clk 0:00:17.6]} 71... Re2+ {[%clk 0:00:09.9]} 72. Kd6 {[%clk 0:00:19.2]}
72... Ne5 {[%clk 0:00:10.4]} 73. a7 {[%clk 0:00:17.1]} 73... Rd2+ {[%clk
0:00:11.5]} 74. Ke6 {[%clk 0:00:17.6]} 74... Ra2 {[%clk 0:00:04.6]} 75. Rb8+
{[%clk 0:00:16.9]} 75... Kg7 {[%clk 0:00:04.8]} 76. a8=Q {[%clk 0:00:17.9]} 1-0